Cogmind - Beta 10.2 @@@ ROGUE MODE // 2020.11.07 @ 12:02:38 Player: REM Result: Destroyed by G-34 Mercenary with Small Laser Performance ------------- Evolutions (0) 0 Regions Visited (2) 400 Robots Destroyed (17) 85 Value Destroyed (373) 373 Prototype IDs (0) 0 Alien Tech Used (0) 0 Bonus (0) 0 TOTAL SCORE: 858 Bonus ------- None Cogmind --------- Core Integrity 0/250 Matter 235/300 Energy 256/265 System Corruption 0% Temperature Cool (6) Movement Walking (120) Location -10/Mines Parts ------- > --- POWER (1) -------- Improved Ion Engine > --- PROPULSION (2) --- Aluminum Leg Aluminum Leg > --- UTILITY (2) ------ Heat Sink Improved Terrain Scanner > --- WEAPON (2) ------- EM Pulse Gun Improved Light Cannon > --- INVENTORY (4) ---- Small Storage Unit Grenade Launcher Datajack Peak State ------------ > --- POWER ------------ Improved Ion Engine > --- PROPULSION ------- Hover Unit Hover Unit > --- UTILITY ---------- Improved Terrain Scanner Light Armor Plating > --- WEAPON ----------- EM Pulse Gun Improved Light Cannon > --- INVENTORY -------- Small Storage Unit Grenade Launcher Datajack [Rating: 10] Favorites ----------- Power Light Ion Engine Engine Light Ion Engine Propulsion Wheel Leg Aluminum Leg Wheel Wheel Hover Unit Hover Unit Utility Light Armor Plating Device Sensor Array Storage Small Storage Unit Protection Light Armor Plating Weapon EM Pulse Gun Energy Gun EM Pulse Gun Ballistic Gun Light Assault Rifle Ballistic Cannon Improved Light Cannon Launcher Grenade Launcher Special Melee Weapon Datajack Build | -11 -10 -10 ------- Run | Scr Mat Min Slots Evolved . | . . . Power . | . . . Propulsion . | . . . Utility . | . . . Weapon . | . . . Parts Attached 26 | 6 20 . Power 3 | 1 2 . Engine 3 | 1 2 . Core . | . . . Reactor . | . . . Propulsion 9 | 2 7 . Treads . | . . . Leg 3 | . 3 . Wheel 4 | 2 2 . Hover 2 | . 2 . Flight . | . . . Utility 6 | 1 5 . Device 3 | . 3 . Storage 2 | 1 1 . Processor . | . . . Hackware . | . . . Protection 1 | . 1 . Artifact . | . . . Weapon 8 | 2 6 . Energy Gun 3 | . 3 . Energy Cannon . | . . . Ballistic Gun 2 | 2 . . Ballistic Cannon 1 | . 1 . Launcher 1 | . 1 . Special Weapon . | . . . Impact Weapon . | . . . Slashing Weapon . | . . . Piercing Weapon . | . . . Special Melee Weapon 1 | . 1 . Unidentified Prototypes . | . . . Parts Lost 7 | . 7 . Power . | . . . Propulsion 4 | . 4 . Utility 1 | . 1 . Weapon 2 | . 2 . Highest Loss Streak 3 | . 3 . Average Slot Usage (%) 93 | . 92 100 Engine 14 | . 14 14 Leg 4 | . 2 28 Wheel 17 | . 18 . Hover 1 | . 2 . Device 12 | . 11 28 Storage 6 | . 6 . Protection 8 | . 8 . Energy Gun 11 | . 11 14 Ballistic Gun 2 | . 3 . Ballistic Cannon 3 | . 2 14 Launcher 4 | . 4 . Special Melee Weapon 4 | . 4 . Naked Turns . | . . . Heaviest Build 17 | 11 17 15 Greatest Support 20 | 20 20 20 Greatest Overweight (x) 2 | 1 2 . Average Overweight (x) . | . . . Largest Inventory Capacity 6 | 6 6 4 Average Capacity 4 | 5 4 4 Most Carried 4 | 4 4 3 Average Carried 2 | . 2 3 Final Capacity 6 | 6 4 4 Final Carried 3 | . 3 3 Class Distribution -------------------- 100% | Mutant Dominant Class ---------------- Mutant | -10/Materials Mutant | -10/Mines Resources | -11 -10 -10 ----------- Run | Scr Mat Min Matter Collected 531 | 197 334 . Remotely . | . . . Salvage Created 347 | . 347 . Parts 29 | . 29 . Haulers Intercepted . | . . . Recyclers Shooed . | . . . Parts Field Recycled . | . . . Retrieved Matter . | . . . Parts Self-Destructed . | . . . Prevented . | . . . Kills | -11 -10 -10 ------- Run | Scr Mat Min Combat Hostiles Destroyed 10 | . 10 . Guns 4 | . 4 . Cannons 4 | . 4 . AOE 2 | . 2 . Classes Destroyed 6 | . 6 . Worker 3 | . 3 . Builder 1 | . 1 . Operator 1 | . 1 . Watcher 2 | . 2 . Swarmer 4 | . 4 . Grunt 6 | . 6 . Best Kill Streak 3 | . 3 . Combat Bots Only 3 | . 3 . Max Kills in Single Turn 2 | . 2 . Gunslinging 1 | . 1 . Exploded 1 | . 1 . Melee . | . . . Uniques/NPCs Destroyed . | . . . Combat | -11 -10 -10 -------- Run | Scr Mat Min Damage Taken 880 | . 868 12 Core 257 | . 245 12 Absorbed by Shields . | . . . Core Remaining (%) 100 | 100 . . Volleys Fired 51 | . 50 1 Largest 2 | . 2 2 Hottest 95 | . 95 79 Shots Fired 86 | . 84 2 Gun 62 | . 61 1 Cannon 16 | . 15 1 Launcher 8 | . 8 . Special . | . . . Kinetic 47 | . 46 1 Thermal 4 | . 4 . Explosive 8 | . 8 . Electromagnetic 27 | . 26 1 Robot Hit Streak 6 | . 6 3 Robot Miss Streak 6 | . 6 1 Penetration Max . | . . . Secondary Targets 1 | . 1 . Max Gunslinging Chain 1 | . 1 . Shots Hit Robots 51 | . 50 1 Core Hits 25 | . 25 . Critical Hits . | . . . Critical Kills . | . . . Critical Parts Destroyed . | . . . Melee Attacks 10 | . 10 . Impact . | . . . Slashing . | . . . Piercing . | . . . Sneak Attacks 6 | . 6 . Combat Hostiles . | . . . Follow-up Attacks . | . . . Damage Inflicted 1062 | . 1049 13 Guns 409 | . 396 13 Cannons 193 | . 193 . Explosions 460 | . 460 . Melee . | . . . Ramming . | . . . Kinetic 367 | . 367 . Thermal 133 | . 133 . Explosive 343 | . 343 . Electromagnetic 219 | . 206 13 Impact . | . . . Slashing . | . . . Piercing . | . . . Highest Corruption . | . . . Average Corruption . | . . . Corruption Purged . | . . . Overload Shots . | . . . Overflow Damage 17 | . 17 . Projectiles . | . . . Explosions 17 | . 17 . Melee . | . . . Knockbacks 1 | . 1 . Impact . | . . . Kinetic 1 | . 1 . Secondary . | . . . Self-Inflicted Damage 169 | . 169 . Shots 3 | . 3 . Rammed 1 | . 1 . Targets Rammed 1 | . 1 . Kicked . | . . . Crushed . | . . . Highest Temperature 253 | . 253 . Average Temperature 65 | . 65 . Received Heat Transfer 249 | . 243 6 Siege Activations . | . . . Robots Corrupted . | . . . Combat Hostiles . | . . . Parts Fried . | . . . Impact Corruptions . | . . . Robots Melted . | . . . Combat Hostiles . | . . . Parts Melted . | . . . Heat Transferred 187 | . 187 . Parts Sabotaged . | . . . Parts Stolen . | . . . Parts Stripped . | . . . Power Chain Reactions 2 | . 2 . Missiles Intercepted . | . . . Alert | -11 -10 -10 ------- Run | Scr Mat Min Peak Influence 224 | . 224 46 Initial 46 | . . 46 Average 91 | . 99 46 Maximum Alert Level 1 | . 1 . Low Security (%) 82 | 100 80 100 Level 1 17 | . 19 . Level 2 . | . . . Level 3 . | . . . Level 4 . | . . . Level 5 . | . . . High Security . | . . . Max Security . | . . . Squads Dispatched 3 | . 3 . Investigation 1 | . 1 . Extermination . | . . . Reinforcement 2 | . 2 . Assault . | . . . Garrison . | . . . Intercept . | . . . Construction Impeded . | . . . Haulers Reinforced . | . . . Stealth | -11 -10 -10 --------- Run | Scr Mat Min Distress Signals 1 | . 1 . Communications Jammed . | . . . Distress Signals . | . . . Times Spotted 29 | . 27 2 Peak Tracking Total 7 | . 7 2 Tactical Retreats 2 | . 2 . Traps | -11 -10 -10 ------- Run | Scr Mat Min Traps Triggered 3 | . 3 . Indirectly . | . . . Trap Hack Attempts 1 | . 1 . Triggered . | . . . Disarmed . | . . . Reprogrammed . | . . . Reused . | . . . Traps Extracted . | . . . Installed . | . . . Triggered . | . . . Machines | -11 -10 -10 ---------- Run | Scr Mat Min Machines Disabled 6 | . 6 . Max in Single Turn 3 | . 3 . Machines Sabotaged . | . . . Garrisons Compromised . | . . . Overloaded Fab Kills . | . . . Fab Network Shutdowns . | . . . Hacking | -11 -10 -10 --------- Run | Scr Mat Min Machines Accessed . | . . . Terminals . | . . . Fabricators . | . . . Repair Stations . | . . . Recycling Units . | . . . Scanalyzers . | . . . Garrison Access . | . . . Total Hacks . | . . . Successful . | . . . Failed . | . . . Catastrophic . | . . . Database Lockouts . | . . . Manual . | . . . Terminals . | . . . Fabricators . | . . . Repair Stations . | . . . Recycling Units . | . . . Scanalyzers . | . . . Garrison Access . | . . . Terminal Hacks . | . . . Fabricator Hacks . | . . . Repair Station Hacks . | . . . Recycling Unit Hacks . | . . . Scanalyzer . | . . . Garrison Access Hacks . | . . . Unauthorized Hacks . | . . . Terminals . | . . . Fabricators . | . . . Repair Stations . | . . . Recycling Units . | . . . Scanalyzers . | . . . Garrison Access . | . . . Data Cores Recovered . | . . . Used . | . . . Hacking Detections . | . . . Full Trace Events . | . . . Feedback Events . | . . . Feedback Blocked . | . . . Robot Schematics Acquired . | . . . Robots Built . | . . . Matter . | . . . Time . | . . . Total Robot Build Rating . | . . . Part Schematics Acquired . | . . . Parts Built . | . . . Matter . | . . . Time . | . . . Total Part Build Rating . | . . . Parts Repaired . | . . . Time . | . . . Parts Recycled . | . . . Recycled Matter . | . . . Retrieved Matter . | . . . Retrieved Components . | . . . Parts Scanalyzed . | . . . Part Schematics Acquired . | . . . Parts Damaged . | . . . Bothacking | -11 -10 -10 ------------ Run | Scr Mat Min Used RIF Installer . | . . . Robots Hacked 3 | . 3 . Non-combat 2 | . 2 . Combat 1 | . 1 . Robot Hacks Applied 3 | . 3 . parse_system 3 | . 3 . Relay Couplers Released . | . . . Robots Rewired . | . . . Allies Hacked . | . . . Hacks Repelled . | . . . Allies | -11 -10 -10 -------- Run | Scr Mat Min Total Allies . | . . . Largest Group . | . . . Highest-Rated Group . | . . . Highest-Rated Ally . | . . . Total Orders . | . . . Ally Attacks . | . . . Total Damage . | . . . Kills . | . . . Allies Corrupted . | . . . Allies Melted . | . . . Intel | -11 -10 -10 ------- Run | Scr Mat Min Robot Analysis Total . | . . . Derelict Logs Recovered . | . . . Drone Launches . | . . . Drone Recoveries . | . . . Exploration | -11 -10 -10 ------------- Run | Scr Mat Min Turns Passed 988 | 45 870 73 Spaces Moved 864 | 47 762 55 Core 16 | 16 . . Treads . | . . . Legs 104 | . 49 55 Wheels 717 | 31 686 . Hover 27 | . 27 . Flight . | . . . Fastest Speed 50 | 50 80 120 Average Speed 88 | 70 87 120 Slowest Speed 180 | 90 180 120 Overloaded Moves . | . . . Propulsion Burnouts . | . . . Robots Hopped . | . . . Cave-ins Triggered . | . . . Exploration Rate (%) 41 | 4 99 21 Regions Visited 2 Branch Regions 1 Pre-discovered Areas . | . . . Known Exits Taken . | . . . Unknown Exits Taken 2 | 1 1 . Scrap Searched . | . . . Spaces Dug . | . . . Terrain Destroyed 66 | . 66 . Melee . | . . . Projectile . | . . . AOE 66 | . 66 . Terrain Rammed . | . . . Walls Destroyed . | . . . Machines Disabled . | . . . Actions | -11 -10 -10 --------- Run | Scr Mat Min Total 999 | 58 879 62 Wait 13 | . 7 6 Move 862 | 46 761 55 Hop . | . . . Pick Up 26 | 6 20 . Fast Attach . | . . . Attach 15 | 6 9 . Detach . | . . . Swap 11 | . 11 . Drop 9 | . 9 . Fire 51 | . 50 1 Melee 10 | . 10 . Ram . | . . . Kick 1 | . 1 . Crush . | . . . Escape Stasis . | . . . Rewire . | . . . Trap 1 | . 1 . Miscellaneous . | . . . Route ------- -11/Scrapyard -10/Materials (discovered 5 exits: [*Mat x3] / [*Min x2]) -10/Mines (discovered 1 exit: [*Mat]) History --------- Turn | Location | Event 8 | -11/Scrapyard | Discovered new exit (range 16) 46 | -11/Scrapyard | Entered Materials 69 | -10/Materials | Discovered new exit (range 3) 203 | -10/Materials | Lost 3 parts (1n2w) 245 | -10/Materials | Discovered new exit (range 14) 346 | -10/Materials | Build established: Mutant 356 | -10/Materials | Discovered new exit (range 5) 427 | -10/Materials | Discovered new exit (range 15) 722 | -10/Materials | Discovered new exit (range 16) 756 | -10/Materials | Core integrity fell below 50% 795 | -10/Materials | Core integrity fell below 20% 916 | -10/Materials | Entered Mines 928 | -10/Mines | Discovered new exit (range 9) 989 | -10/Mines | Destroyed by G-34 Mercenary with Small Laser Last Messages --------------- U-05 Engineer destroyed. The unstable cave ceiling collapses. Acquired Aluminum Leg. Dropped Hover Unit. Acquired Aluminum Leg. Acquired 26 matter. Acquired 45 matter. Acquired Heat Sink. G-34 Mercenary destroyed. Acquired 40 matter. Slammed into M-13 Machinist. Acquired Aluminum Leg. Dropped Aluminum Leg. LOCATION=UNKNOWN GOAL=ESCAPE Something is scanning the area. K-01 Serf cleans the Core Extractor. K-01 Serf collects debris. K-01 Serf cleans the Core Extractor. EXIT=FOUND Map ----- +----------------------------------------------------+ | | | | | | | | | | | | | | | | | | | | | | | | | | | | | ???????????????????????????????#?????????????? | | ???????????????????#####?????????????????????? | | ???????????????##### ##????#??????????#????? | | ???????????????# ###???????#?#????????? | | ???????????????# ## ##?????????????????? | | ????????? ?????# ## = !##??????#?????????? | | ???????????????# ### ! #?????#??????????? | | ?????# ### ### ## ##########????????? | | ?????# ### < #????????? | | ?????# ####### #### ######## #????????? | | ???????????????????# ##????## #??#?????? | | ????????????????#??######@ ##???## #########? | | ????????????????????????# #???# #?? | | ????????????#???????????# #???# #?? | | ????????????????????????# ##???# """ """ #?? | | ?????????#??????????????# #???## """ """ #?? | | ???????????????????????##g #????# """ """ #?? | | ?????????????????????###g ##????# #?? | | ?????????????????????# ##?????# """ #?? | | ?????????????????? #??#???# """ #?? | | ??????? ??????# #?????# """ #?? | | ??????????????# ##???# #?? | | ?????????????# """ #???# """ """ #?? | | ????????????# """ #???# """ """ #?? | | ??????????? """ #???# """ """ #?? | | ?????????? """ ???# ???? | | ??????????? ? ??# ??? | | ??????????? ??? ?# ??? | | ???????????? ### ??? ####???####?? | | ???????????? #??#####??? #???????????? | | ?????????????? ???????????? #????????????? | | ??????????????????????????? ????????????????? | | ?????????????????????????????????????????????? | | ?????????????????????????????????????????????? | | ?????????????????????????????????????????????? | | ?????????????????????????????????????????????? | +----------------------------------------------------+ Best States ------------- Heat Dissipation 35 Energy Generation 12 Energy Capacity 265 Matter Stores 258 Matter Capacity 350 Sight Range 16 Robot Scan Range 10 Terrain Scan Range 16 Terrain Scan Density 10 Armor Coverage 150 Evasion (%) 50 Item Schematics ----------------- None Robot Schematics ------------------ None Fabricated ------------ Nothing Alien Tech Used ----------------- None Achievements -------------- None Challenges ------------ None Game ------ Seed CloakExplosiveInterpreter Manual? 0 Play Time 00:14:09 Cumulative 6.0 hours Start 2020.11.07 @ 11:48:30 End 2020.11.07 @ 12:02:38 Sessions 1 Manual Loads 0 Difficulty Rogue Special Mode None Game No. 10 Rogue 10 Adventurer 0 Explorer 0 Win Type - Total 0 Types 0/0/0/0/0/0/0/0/0 Lore% 6 Gallery% 14 Achievement% 10 Wizard Run 0 Options --------- ASCII 0 Keyboard 0 Movement Numpad Keybinds 0 Fullscreen 2 Font 18/SmallcapsGlow Map View 76x50 Tactical HUD 0 Map Filters NONE Filters NONE Steam 1 RUN: d90aae63-7ac7-4559-b2b1-d9169c07cfad